Cogmind - Beta 14 @@@ ROGUE MODE // 2025.04.26 @ 19:28:49 Player: Zaros426 Result: Destroyed by H-55 Commando with Gauss Rifle Performance ------------- Evolutions (0) 0 Regions Visited (3) 600 Robots Destroyed (62) 310 Value Destroyed (1232) 1232 Prototype IDs (27) 540 Alien Tech Used (0) 0 Bonus (-398) -398 TOTAL SCORE: 2284 Bonus ------- Aligned with FarCom 300 Friendly Fire -698 Cogmind --------- Core Integrity 0/250 Matter 210/300 Energy 226/265 System Corruption 1% Temperature Cool (4) Movement Core (1600) Ox31 Location -10/Exiles Parts ------- > --- POWER (1) -------- Reinforced Ion Engine > --- PROPULSION (2) --- Compact Wheel > --- UTILITY (2) ------ Huge Storage Unit > --- WEAPON (2) ------- Grenade Launcher Grenade Launcher > --- INVENTORY (25) --- Reinforced Ion Engine Reinforced Ion Engine Improved Deuterium Engine Advanced Heat Sink Large Storage Unit Superbattery (972) Structural Scanner Improved Terrain Scanner Seismic Detector Transport Network Coupler ECM Suite Light Armor Plating Light Armor Plating Shock Absorption System PSU Rigger Spread Laser Spread Laser Makeshift Sword Peak State ------------ > --- POWER ------------ Reinforced Ion Engine > --- PROPULSION ------- Compact Wheel Compact Wheel > --- UTILITY ---------- Huge Storage Unit Light Armor Plating > --- WEAPON ----------- AWS/Thermal > --- INVENTORY -------- Reinforced Ion Engine Reinforced Ion Engine Improved Deuterium Engine Light Treads Compact Wheel Advanced Heat Sink Large Storage Unit Superbattery Structural Scanner Improved Terrain Scanner Seismic Detector Transport Network Coupler ECM Suite Light Armor Plating Light Armor Plating Shock Absorption System PSU Rigger Spread Laser Spread Laser Grenade Launcher Grenade Launcher Makeshift Sword [Rating: 27] Favorites ----------- Power Reinforced Ion Engine Engine Reinforced Ion Engine Propulsion Light Treads Treads Light Treads Wheel Compact Wheel Utility Targeting Computer Storage Huge Storage Unit Processor Targeting Computer Protection Light Armor Plating Weapon Spread Laser Energy Gun Spread Laser Ballistic Gun Assault Rifle Launcher Grenade Launcher Special Weapon Mining Laser Slashing Weapon Makeshift Sword Build | -11 -10 -10 -10 ------- Run | Yrd Mat Min Exi Slots Evolved . | . . . . Power . | . . . . Propulsion . | . . . . Utility . | . . . . Weapon . | . . . . Parts Attached 36 | 6 20 3 7 Power 4 | 1 3 . . Engine 4 | 1 3 . . Core . | . . . . Reactor . | . . . . Propulsion 9 | 2 3 . 4 Treads 4 | 2 1 . 1 Leg . | . . . . Wheel 5 | . 2 . 3 Hover . | . . . . Flight . | . . . . Utility 6 | 1 4 1 . Device . | . . . . Storage 3 | 1 2 . . Processor 2 | . 2 . . Hackware . | . . . . Protection 1 | . . 1 . Artifact . | . . . . Weapon 17 | 2 10 2 3 Energy Gun 7 | 1 4 1 1 Energy Cannon . | . . . . Ballistic Gun 5 | 1 4 . . Ballistic Cannon . | . . . . Launcher 2 | . . . 2 Special Weapon 2 | . 2 . . Impact Weapon . | . . . . Slashing Weapon 1 | . . 1 . Piercing Weapon . | . . . . Special Melee Weapon . | . . . . Unidentified Prototypes . | . . . . Parts Lost 10 | . 6 . 4 Power 1 | . 1 . . Propulsion 5 | . 2 . 3 Utility 1 | . . . 1 Weapon 3 | . 3 . . Highest Loss Streak 4 | . 3 . 4 To Critical Strikes . | . . . . Average Slot Usage (%) 96 | . 93 100 97 Engine 14 | . 14 14 14 Treads 16 | . 20 14 6 Wheel 10 | . 7 14 20 Storage 14 | . 14 14 14 Processor 9 | . 10 11 . Protection 2 | . . 2 14 Energy Gun 19 | . 13 27 25 Ballistic Gun 6 | . 11 . . Peak Build Rating 27 | 6 13 16 27 Average Rating 10 | 5 9 13 16 On Entrance 8 | . 6 13 14 Naked Turns . | . . . . Heaviest Build 101 | 14 96 99 101 Greatest Support 40 | 40 40 16 32 Greatest Overweight (x) 6 | . 5 6 6 Average Overweight (x) 3 | . 2 5 4 Largest Inventory Capacity 25 | 8 25 25 25 Average Capacity 19 | 7 16 25 25 Most Carried 25 | 3 24 25 25 Average Carried 17 | . 13 24 23 Final Capacity 25 | 8 25 25 25 Final Carried 25 | 3 24 25 18 Class Distribution -------------------- 95% | Mutant 4% | Scavenger-Mutant Dominant Class ---------------- Mutant | -10/Materials Mutant | -10/Mines Mutant | -10/Exiles Resources | -11 -10 -10 -10 ----------- Run | Yrd Mat Min Exi Matter Collected 761 | 305 426 30 . Remotely . | . . . . Salvage Created 1684 | 239 808 315 322 Parts 124 | 15 65 23 21 Haulers Intercepted 2 | . 2 . . Recyclers Shooed 1 | . 1 . . Parts Field Recycled . | . . . . Retrieved Matter . | . . . . Parts Self-Destructed . | . . . . Prevented . | . . . . Kills | -11 -10 -10 -10 ------- Run | Yrd Mat Min Exi Combat Hostiles Destroyed 37 | . 20 6 11 Guns 28 | . 20 6 2 AOE 9 | . . . 9 Classes Destroyed 10 | 2 6 . 2 Worker 3 | . 2 1 . Builder 3 | . 1 2 . Tunneler 10 | 7 2 1 . Hauler 2 | . 2 . . Recycler 3 | 1 1 1 . Watcher 3 | . 3 . . Swarmer 12 | . 9 3 . Grunt 22 | . 11 3 8 Duelist 1 | . . . 1 Programmer 2 | . . . 2 Best Kill Streak 11 | 3 4 4 11 Combat Bots Only 11 | . 3 3 11 Max Kills in Single Turn 7 | 2 2 1 7 Gunslinging 1 | . 1 . . Exploded 7 | . . . 7 Melee . | . . . . Uniques/NPCs Destroyed 1 | . . 1 . YI-UF0 (-10/Mines) Combat | -11 -10 -10 -10 -------- Run | Yrd Mat Min Exi Hostile Shots Fired 176 | . 114 17 45 Missed 43 | . 27 5 11 Damage Taken 1570 | . 919 139 512 Core 264 | . 124 41 99 Absorbed by Shields . | . . . . Core Remaining (%) 100 | 100 . . . Volleys Fired 135 | 15 100 18 2 Largest 2 | 2 2 2 2 Hottest 130 | 70 130 130 60 Shots Fired 247 | 30 166 36 15 Gun 239 | 30 162 36 11 Cannon . | . . . . Launcher 4 | . . . 4 Special 4 | . 4 . . Kinetic 129 | 15 114 . . Thermal 114 | 15 52 36 11 Explosive 4 | . . . 4 Electromagnetic . | . . . . Robot Hit Streak 11 | 11 11 6 10 Robot Miss Streak 5 | 2 5 5 2 Penetration Max . | . . . . Secondary Targets 2 | . 2 . . Max Gunslinging Chain 1 | . 1 . . Autonomous 11 | . . . 11 Shots Hit Robots 163 | 19 103 31 10 Core Hits 145 | 9 66 49 21 Critical Kills . | . . . . Critical Parts Destroyed . | . . . . Critical Strikes 1 | . 1 . . Burn 1 | . 1 . . Melee Attacks 1 | . . 1 . Impact . | . . . . Slashing 1 | . . 1 . Piercing . | . . . . Sneak Attacks 1 | . . 1 . Combat Hostiles . | . . . . Follow-up Attacks . | . . . . Damage Inflicted 2867 | 267 1224 516 860 Guns 2251 | 267 1224 450 310 Cannons . | . . . . Explosions 550 | . . . 550 Melee 66 | . . 66 . Ramming . | . . . . Kinetic 956 | 153 803 . . Thermal 1295 | 114 421 450 310 Explosive 550 | . . . 550 Electromagnetic . | . . . . Impact . | . . . . Slashing 66 | . . 66 . Piercing . | . . . . Highest Corruption 1 | . . . 1 Average Corruption 1 | . . . 1 Corruption Purged . | . . . . Corruption Blocked . | . . . . Overload Shots . | . . . . Overflow Damage 15 | . . . 15 Projectiles . | . . . . Explosions 15 | . . . 15 Melee . | . . . . Knockbacks . | . . . . Impact . | . . . . Kinetic . | . . . . Secondary . | . . . . Self-Inflicted Damage . | . . . . Shots . | . . . . Rammed . | . . . . Targets Rammed . | . . . . Kicked . | . . . . Crushed . | . . . . Highest Temperature 342 | 54 342 255 10 Average Temperature 69 | 19 77 82 7 Received Heat Transfer 465 | . 387 54 24 Effects 1 | . 1 . . Energy Bleed 1 | . 1 . . Siege Activations . | . . . . Robots Corrupted . | . . . . Combat Hostiles . | . . . . Parts Fried . | . . . . Impact Corruptions . | . . . . Robots Melted . | . . . . Combat Hostiles . | . . . . Parts Melted 1 | . . 1 . Heat Transferred 2108 | 333 887 555 333 Parts Sabotaged . | . . . . Parts Stolen . | . . . . Parts Stripped . | . . . . Power Chain Reactions . | . . . . Alert | -11 -10 -10 -10 ------- Run | Yrd Mat Min Exi Peak Influence 226 | 40 226 162 . Initial 87 | . 26 87 . Average 67 | 16 86 44 . Maximum Alert Level 1 | . 1 . . Low Security (%) 97 | 100 95 100 . Level 1 2 | . 4 . . Level 2 . | . . . . Level 3 . | . . . . Level 4 . | . . . . Level 5 . | . . . . High Security . | . . . . Max Security . | . . . . Squads Dispatched 2 | . 2 . . Investigation 2 | . 2 . . Extermination . | . . . . Reinforcement . | . . . . Assault . | . . . . Garrison . | . . . . Intercept . | . . . . Searches Triggered . | . . . . Construction Impeded . | . . . . Haulers Reinforced . | . . . . Active Scanning Responses . | . . . . Cargo Convoy Interrupts . | . . . . Stealth | -11 -10 -10 -10 --------- Run | Yrd Mat Min Exi Distress Signals 1 | . 1 . . Communications Jammed . | . . . . Distress Signals . | . . . . Times Spotted 54 | . 31 9 14 Peak Tracking Total 15 | . 4 2 15 Tactical Retreats 4 | . 4 . . Traps | -11 -10 -10 -10 ------- Run | Yrd Mat Min Exi Traps Triggered . | . . . . Indirectly . | . . . . Trap Hack Attempts . | . . . . Triggered . | . . . . Disarmed . | . . . . Reprogrammed . | . . . . Reused . | . . . . Traps Extracted . | . . . . Installed . | . . . . Triggered . | . . . . Machines | -11 -10 -10 -10 ---------- Run | Yrd Mat Min Exi Machines Disabled . | . . . . Max in Single Turn . | . . . . Machines Repaired . | . . . . Machines Dismantled . | . . . . Machines Sabotaged . | . . . . Overloaded Fab Kills . | . . . . Hacking | -11 -10 -10 -10 --------- Run | Yrd Mat Min Exi Machines Accessed 12 | . 10 . 2 Terminals 8 | . 8 . . Fabricators . | . . . . Repair Stations . | . . . . Recycling Units 2 | . 2 . . Scanalyzers . | . . . . Garrison Access . | . . . . Total Hacks 30 | . 28 . 2 Successful 19 | . 17 . 2 Failed 11 | . 11 . . Catastrophic . | . . . . Database Lockouts . | . . . . Manual 22 | . 21 . 1 Terminals 25 | . 25 . . Fabricators . | . . . . Repair Stations . | . . . . Recycling Units 3 | . 3 . . Scanalyzers . | . . . . Garrison Access . | . . . . Terminal Hacks 8 | . 6 . 2 Record 1 | . . . 1 Robot Analysis 1 | . 1 . . Prototype ID Bank 2 | . 2 . . Alert Level 1 | . 1 . . Unreport Threat 1 | . 1 . . Locate Traps 1 | . 1 . . Derelict Proto ID Bank 1 | . . . 1 Fabricator Hacks . | . . . . Repair Station Hacks . | . . . . Recycling Unit Hacks . | . . . . Scanalyzer . | . . . . Garrison Access Hacks . | . . . . Unauthorized Hacks 11 | . 11 . . Terminals 9 | . 9 . . Botnet 3 | . 3 . . Operators 1 | . 1 . . Skim 5 | . 5 . . Fabricators . | . . . . Repair Stations . | . . . . Recycling Units 2 | . 2 . . Tunnel 2 | . 2 . . Scanalyzers . | . . . . Garrison Access . | . . . . Data Cores Recovered . | . . . . Used . | . . . . Hacking Detections 8 | . 8 . . Full Trace Events . | . . . . Feedback Events . | . . . . Feedback Blocked . | . . . . Robot Schematics Acquired . | . . . . Robots Built . | . . . . Authchips . | . . . . Time . | . . . . Total Robot Build Rating . | . . . . Part Schematics Acquired . | . . . . Parts Built . | . . . . Authchips . | . . . . Time . | . . . . Total Part Build Rating . | . . . . Parts Repaired . | . . . . Time . | . . . . Parts Recycled . | . . . . Recycled Matter . | . . . . Retrieved Matter . | . . . . Retrieved Components . | . . . . Parts Scanalyzed . | . . . . Part Schematics Acquired . | . . . . Parts Damaged . | . . . . Bothacking | -11 -10 -10 -10 ------------ Run | Yrd Mat Min Exi Used RIF Installer . | . . . . Robots Hacked . | . . . . Non-combat . | . . . . Combat . | . . . . Robot Hacks Applied . | . . . . Relay Couplers Released . | . . . . Fabnet Peak Effective % . | . . . . Robots Rewired . | . . . . Allies Hacked . | . . . . Hacks Repelled . | . . . . Allies | -11 -10 -10 -10 -------- Run | Yrd Mat Min Exi Total Allies . | . . . . Largest Group . | . . . . Highest-Rated Group . | . . . . Highest-Rated Ally . | . . . . Total Orders . | . . . . Ally Attacks . | . . . . Total Damage . | . . . . Kills . | . . . . Allies Corrupted . | . . . . Allies Melted . | . . . . Intel | -11 -10 -10 -10 ------- Run | Yrd Mat Min Exi Robot Analysis Total 1 | . 1 . . Derelict Logs Recovered 2 | . . 2 . Drone Launches . | . . . . Drone Recoveries . | . . . . Exploration | -11 -10 -10 -10 ------------- Run | Yrd Mat Min Exi Turns Passed 4329 | 213 2290 1378 448 Spaces Moved 2123 | 97 1037 731 258 Core 4 | 4 . . . Treads 529 | 93 436 . . Legs . | . . . . Wheels 1590 | . 601 731 258 Hover . | . . . . Flight . | . . . . Fastest Speed 50 | 50 115 175 145 Average Speed 166 | 155 160 177 165 Slowest Speed 240 | 160 240 190 190 Overloaded Moves . | . . . . Propulsion Burnouts . | . . . . Robots Hopped . | . . . . Cave-ins Triggered . | . . . . Exploration Rate (%) 62 | 4 96 99 49 Regions Visited 3 Branch Regions 2 Pre-discovered Areas 8 | . 6 1 1 Known Exits Taken . | . . . . Unknown Exits Taken 3 | 1 1 1 . Scrap Searched 1 | . . 1 . Spaces Dug 3 | . 3 . . Terrain Destroyed 13 | . 3 . 10 Melee . | . . . . Projectile 3 | . 3 . . AOE 10 | . . . 10 Terrain Rammed . | . . . . Walls Destroyed . | . . . . Machines Disabled . | . . . . Actions | -11 -10 -10 -10 --------- Run | Yrd Mat Min Exi Total 2683 | 127 1500 776 280 Wait 326 | 5 305 13 3 Move 2120 | 96 1036 730 258 Hop . | . . . . Pick Up 40 | 4 28 6 2 Fast Attach 12 | 6 5 . 1 Attach 9 | . 4 1 4 Detach . | . . . . Swap 15 | . 11 2 2 Drop 25 | 1 11 5 8 Fire 135 | 15 100 18 2 Melee 1 | . . 1 . Ram . | . . . . Kick . | . . . . Crush . | . . . . Escape Stasis . | . . . . Rewire . | . . . . Trap . | . . . . Miscellaneous . | . . . . Route ------- -11/Scrapyard -10/Materials (discovered 5 exits: *Mat x3 / [*Min] / *Sub) -10/Mines (discovered 3 exits: *Mat x2 / *Exi) -10/Exiles (discovered 2 exits: Min x2) History --------- Turn | Location | Event 8 | -11/Scrapyard | Discovered new exit (range 15) 214 | -11/Scrapyard | Entered Materials 310 | -10/Materials | Build established: Mutant 740 | -10/Materials | Discovered new exit (range 15) 944 | -10/Materials | Discovered new exit (range 14) 1209 | -10/Materials | Discovered new exit (range 8) 1323 | -10/Materials | Lost 3 parts (2n1w) 1502 | -10/Materials | Discovered new exit (range 6) 1853 | -10/Materials | Learned location of Mines (-10) 1906 | -10/Materials | Learned location of Recycling (-7) 1949 | -10/Materials | Learned Storage trap positions 2003 | -10/Materials | Identified exit to Subcaves 2016 | -10/Materials | Learned location of Subcaves (-10) 2504 | -10/Materials | Entered Mines 2505 | -10/Mines | Identified exit to Materials 2511 | -10/Mines | Met a Derelict bent on vengeance 2532 | -10/Mines | Learned location of Storage (-7) 2721 | -10/Mines | A weapon hastily lodged in a ceiling crevice suddenly fell to the ground 2746 | -10/Mines | Learned location of 1 exit from Materials 2818 | -10/Mines | Core integrity fell below 50% 3033 | -10/Mines | Deemed a non-threat by the Exiles lab entrance 3033 | -10/Mines | Discovered new exit (range 5) 3526 | -10/Mines | YI-UF0 nonchalantly dropped a Grenade Launcher on the ground 3623 | -10/Mines | Murdered YI-UF0 3882 | -10/Mines | Entered Exiles 3883 | -10/Exiles | Identified exit to Mines 3928 | -10/Exiles | Met 8R-AWN 3962 | -10/Exiles | Met EX-HEX 4015 | -10/Exiles | Met EX-BIN 4038 | -10/Exiles | Aligned with FarCom system 4040 | -10/Exiles | Given EX-Vault access code 4086 | -10/Exiles | Opened EX-Vault 4098 | -10/Exiles | Found Superbattery 4109 | -10/Exiles | Found PSU Rigger 4142 | -10/Exiles | Warned to stay clear of 0b10 Research branches 4156 | -10/Exiles | Exiles lab attacked by MAIN.C 4187 | -10/Exiles | Learned location of Zion (-7) 4265 | -10/Exiles | Found AWS/Thermal 4320 | -10/Exiles | Core integrity fell below 20% 4330 | -10/Exiles | Destroyed by H-55 Commando with Gauss Rifle Last Messages --------------- 04318_ G-34 Mercenary destroyed. 04319_ Penetrated by Slug. 04321_ Com. Wheel destroyed. 04324_ Dropped AWS/Thermal. 04326_ Lgt. Treads destroyed. 04326_ P-60 Hacker destroyed. 04326_ G-34 Mercenary destroyed. 04326_ Destroyed Imp. Heat Sink. 04326_ Destroyed Mic. Nuclear Core. 04326_ Destroyed Shock Rifle. 04326_ G-34 Mercenary destroyed. 04326_ L-31 Rogue destroyed. 04327_ Penetrated by Slug. 04327_ Machine disabled. 04328_ Penetrated by Slug. 04329_ G-34 Mercenary destroyed. 04329_ P-60 Hacker destroyed. 04330_ Slug penetrates Machine. 04330_ Lgt. Armor Plating destroyed. 04330_ Penetrated by Slug. Map ----- +----------------------------------------------------+ | ???????????????????????#[!! #?????????????????? | | ???????????????????????# #?????????????????? | | ???????????????????????## ##?????????????????? | | ???????????????????????#X #??????????????????? | | ???????????????????????## #??????????????????? | | ????????????????????????# #??????????????????? | | ????????????????????????# #???####???????????? | | ????????????????????????# #??"""""???????????? | | ????????????????????????# ## """#??????????? | | ????????????????????????# X""#??????????? | | ????????????????????????# ## """#??????????? | | ??????????????????####??# #??"""""???????????? | | ?????????????????""""""?# #???####???????????? | | ?????????????????"""" ## #??????????????????? | | ????????????????#""X" #??????????????????? | | ????????????????#" #??????????????????? | | ????????????????#" ## #??????????????????? | | ????????????????#""""""?# #?#########????????? | | ????????????????##"###??# #?#"""""""#????????? | | ????????????????????????# #?#"""""""#????????? | | ????????????????????????# #?#"""""""#????????? | | ???????????????????????## ###"" """"#????????? | | ???????????????????????#" """"#????????? | | ???????????????????????# """#????????? | | ???????????????????????# """#????????? | | ???????????????????????#"@ """#????????? | | ??????????#####????????# """#????????? | | ?????????? """#???????# """#????????? | | ?????????"" """#???????## """"????????? | | ????????#"" #????????# """#????????? | | ????????#"" #????????# "X" """"????????? | | ????????#"" "#????????# * """ #????????? | | ????????? ""????????? [ """""""""#????????? | | ??????????" "?????????# =% [ ##########????????? | | ??????????# #????????## ?????????????????? | | ????????### ###?######" = #????????????????? | | """#####X# #"###"""""" = #????????????????? | | """""" " " =h%!b #???###########??? | | "" """ " h% #####"""""""""##?? | | " " *%= " """ """"##? | | ! [ "" " #? | | *% " """#? | | # " "#? | | ## " "## | | ?##" ""# | | ??#""" """""" "" | | ??#" ######""" | | ???" ""##????#####""" | | ??""" """##?????????##""" | | ??"" """##???????????#"""" | +----------------------------------------------------+ Best States ------------- Heat Dissipation 25 Energy Generation 12 Energy Capacity 265 Matter Stores 300 Matter Capacity 300 Sight Range 16 Terrain Scan Density 10 Armor Coverage 150 Evasion (%) 40 Targeting Accuracy 5 Recoil Reduction 2 Item Schematics ----------------- None Robot Schematics ------------------ None Fabricated ------------ Nothing Alien Tech Used ----------------- None Achievements -------------- None Challenges ------------ None Game ------ Seed DynamicGlidesysSpoofer Manual? 0 Play Time 00:23:47 Cumulative 208.3 hours Start 2025.04.26 @ 19:04:57 End 2025.04.26 @ 19:28:49 Sessions 1 Manual Loads 0 Difficulty Rogue Special Mode None Game No. 102 Rogue 102 Adventurer 0 Explorer 0 Win Type - Total 0 Types 0/0/0/0/0/0/0/0/0 Lore% 54 Gallery% 73 Achievement% 60 Wizard Run 0 Options --------- Layout 0 ASCII 0 Keyboard 0 Movement Mouse Keybinds 0 Fullscreen 1 Font 24/Smallcaps Map View 183x50 Zoom Use 0% Tactical HUD 1 Map Filters NONE Filters NONE Steam 0 RUN: 8c744ee3-ff0c-4c7d-9e61-4e52b5f61b45